bitfinex/quotes_SOLUSD_20250209
["timestamp","ask_amount","ask_price","bid_price","bid_amount"]
[1739122452017,3.4853,200.84,200.78,23.87233203]
[1739122452510,3.4853,200.84,200.79,23.87233203]
[1739122452715,27.35743203,200.86,200.8,23.87233203]
[1739122452950,3.4851,200.86,200.81,23.87233203]
[1739122453325,3.4851,200.86,200.8,23.87233203]
[1739122453326,27.35743203,200.86,200.8,23.87233203]
[1739122453921,23.87233203,200.81,200.75,23.87233203]
[1739122454240,23.87233203,200.77,200.72,0.03]
[1739122454633,12.1976,200.86,200.72,4.26459744]
[1739122454833,3.4853,200.84,200.73,0.74699612]
[1739122455029,23.93533203,200.87,200.8,23.87233203]
[1739122455334,3.4851,200.86,200.8,23.87233203]
[1739122456442,27.35743203,200.86,200.8,23.87233203]
[1739122456619,3.4851,200.86,200.8,23.87233203]
[1739122457019,27.35743203,200.86,200.8,23.87233203]
[1739122457736,23.87233203,200.85,200.78,23.87233203]
[1739122457960,23.87233203,200.81,200.74,23.87233203]
[1739122458245,13.41184853,200.84,200.75,23.87233203]
[1739122458246,23.87233203,200.82,200.75,23.87233203]
[1739122458420,3.4858,200.81,200.75,23.87233203]
[1739122459715,3.4858,200.81,200.77,23.87233203]
[1739122459924,3.4856,200.83,200.78,23.87233203]
[1739122461747,23.87233203,200.85,200.78,23.87233203]
[1739122462040,3.4853,200.84,200.78,23.87233203]
[1739122462844,3.4853,200.84,200.79,23.87233203]
[1739122463017,3.4853,200.84,200.8,23.87233203]
[1739122463222,3.4853,200.84,200.78,23.87233203]
[1739122463428,27.35763203,200.84,200.77,23.87233203]
[1739122463646,23.87233203,200.83,200.77,23.87233203]
[1739122464149,23.87233203,200.84,200.77,23.87233203]
[1739122464347,23.87233203,200.83,200.76,23.87233203]
[1739122464537,23.87233203,200.82,200.75,23.87233203]
[1739122464727,23.87233203,200.83,200.76,23.87233203]
[1739122466326,27.35793203,200.83,200.76,23.87233203]
[1739122466531,27.35793203,200.83,200.74,23.87233203]
[1739122466532,23.87233203,200.81,200.74,23.87233203]
[1739122466747,23.87233203,200.78,200.72,0.03]
[1739122467053,23.87233203,200.76,200.72,0.03]
[1739122467344,23.87233203,200.73,200.72,0.03]
[1739122468342,27.35953203,200.73,200.72,0.03]
[1739122468533,3.4872,200.73,200.72,0.03]
[1739122469245,6.3062,200.77,200.72,0.03]
[1739122469246,23.87233203,200.75,200.72,0.03]
[1739122469453,23.87233203,200.76,200.72,0.03]
[1739122469644,30.17853203,200.77,200.72,0.03]
[1739122469844,27.35893203,200.77,200.72,0.03]
[1739122470038,23.87233203,200.76,200.72,0.03]
[1739122470853,23.87233203,200.78,200.72,0.03]
[1739122472647,84.486,200.81,200.75,23.87233203]
[1739122472846,30.17853203,200.82,200.76,23.87233203]
[1739122473148,30.17853203,200.82,200.69,1.5535]
[1739122473149,23.87233203,200.8,200.73,23.87233203]
[1739122473453,23.87233203,200.79,200.72,23.87233203]
[1739122473656,23.87233203,200.79,200.73,23.87233203]
[1739122474234,3.4864,200.78,200.72,23.87233203]
[1739122474469,27.35873203,200.78,200.71,23.87233203]
[1739122474654,23.87233203,200.76,200.69,23.87233203]
[1739122475155,23.87233203,200.76,200.7,23.87233203]
[1739122475363,23.87233203,200.77,200.7,23.87233203]
[1739122476058,27.35893203,200.77,200.7,23.87233203]
[1739122476245,3.4866,200.77,200.71,23.87233203]
[1739122476444,27.35873203,200.78,200.71,23.87233203]
[1739122477958,3.4864,200.78,200.72,23.87233203]
[1739122478847,3.4864,200.78,200.73,23.87233203]
[1739122479049,23.87233203,200.79,200.73,23.87233203]
[1739122479757,23.87233203,200.79,200.72,23.87233203]
[1739122479965,23.87233203,200.78,200.71,23.87233203]
[1739122480861,27.35883203,200.78,200.71,23.87233203]
[1739122481259,30.17853203,200.82,200.75,23.87233203]
[1739122481558,6.3062,200.82,200.76,23.87233203]
[1739122481758,30.17853203,200.82,200.75,23.87233203]
[1739122482354,33.66423203,200.82,200.75,23.87233203]
[1739122482559,30.17853203,200.82,200.75,23.87233203]
[1739122483145,23.87233203,200.8,200.74,27.35933203]
[1739122483468,23.87233203,200.81,200.74,27.35933203]
[1739122484168,23.87233203,200.82,200.75,23.87233203]
[1739122484465,23.87233203,200.83,200.76,23.87233203]
[1739122484841,27.35783203,200.83,200.76,23.87233203]
[1739122485247,27.35783203,200.83,200.76,27.35893203]
[1739122485459,23.87233203,200.83,200.76,27.35893203]
[1739122485666,23.87233203,200.83,200.77,23.87233203]
[1739122486162,23.87233203,200.82,200.75,23.87233203]
[1739122486757,23.87233203,200.81,200.75,23.87233203]
[1739122487165,23.87233203,200.81,200.75,27.35923203]
[1739122487666,14.88684661,200.81,200.75,18.37374661]
[1739122488052,14.88684661,200.82,200.76,14.88684661]
[1739122488450,14.88684661,200.82,200.76,3.4867]
[1739122489065,14.88684661,200.82,200.75,18.37364661]
[1739122489498,14.88684661,200.8,200.73,18.37394661]
[1739122489772,14.88684661,200.79,200.73,3.4871]
[1739122490365,1.5149,200.85,200.72,0.03]
[1739122490366,14.88684661,200.76,200.72,0.03]
[1739122490745,14.88684661,200.77,200.72,0.03]
[1739122492356,18.37344661,200.77,200.72,0.03]
[1739122492669,3.4866,200.77,200.72,0.03]
[1739122493675,14.88684661,200.79,200.72,14.91684661]
[1739122493876,18.37284661,200.8,200.74,14.88684661]
[1739122494179,18.37254661,200.82,200.76,14.88684661]
[1739122494574,18.37254661,200.82,200.75,14.88684661]
[1739122495382,18.37254661,200.82,200.76,14.88684661]
[1739122495761,3.4857,200.82,200.76,14.88684661]
[1739122496161,18.37234661,200.83,200.77,14.88684661]
[1739122497383,3.4855,200.83,200.78,14.88684661]
[1739122497571,3.5485,200.83,200.78,14.88684661]
[1739122498464,3.5485,200.83,200.77,14.88684661]
[1739122498666,14.88684661,200.81,200.75,14.88684661]
[1739122498862,14.88684661,200.82,200.75,14.88684661]
[1739122499061,14.88684661,200.82,200.76,14.88684661]
[1739122499680,0.063,200.83,200.77,14.88684661]
[1739122500058,14.94984661,200.83,200.77,14.88684661]
[1739122500273,14.94984661,200.83,200.74,3.487]
[1739122500480,14.88684661,200.82,200.76,14.88684661]
[1739122500681,14.94984661,200.83,200.77,14.88684661]
[1739122500982,0.063,200.83,200.77,14.88684661]
[1739122501984,0.063,200.83,200.79,14.88684661]
[1739122502167,0.063,200.83,200.81,14.88684661]
[1739122502580,0.063,200.83,200.82,14.88684661]
[1739122502993,0.063,200.83,200.78,14.88684661]
[1739122503182,14.88684661,200.81,200.75,14.88684661]
[1739122503475,14.88684661,200.81,200.74,14.88684661]
[1739122503859,14.88684661,200.81,200.75,14.88684661]
[1739122504160,3.4859,200.81,200.76,14.88684661]
[1739122504373,0.063,200.83,200.78,14.88684661]
[1739122504684,0.063,200.83,200.79,14.88684661]
[1739122504896,14.88684661,200.82,200.75,14.88684661]
[1739122505068,14.88684661,200.81,200.74,14.88684661]
[1739122505684,14.88684661,200.81,200.75,14.88684661]
[1739122505883,14.88684661,200.82,200.75,14.88684661]
[1739122506384,14.88684661,200.79,200.73,14.88684661]
[1739122506582,14.88684661,200.79,200.72,14.91684661]
[1739122506785,14.88684661,200.78,200.72,0.03]
[1739122506977,14.88684661,200.76,200.72,0.03]
[1739122508075,3.4869,200.75,200.72,0.03]
[1739122508271,14.88684661,200.73,200.72,0.03]
[1739122510378,18.37404661,200.73,200.72,0.03]
[1739122510972,3.4872,200.73,200.72,0.03]
[1739122511885,18.37384661,200.75,200.72,0.03]
[1739122512386,14.88684661,200.74,200.72,0.03]
[1739122512693,14.88684661,200.73,200.72,0.03]
[1739122513691,29.85739514,200.73,200.72,0.03]
[1739122514579,33.34459514,200.73,200.72,0.03]
[1739122515771,19.93274661,200.73,200.72,0.03]
[1739122516785,3.4871,200.74,200.72,0.03]
[1739122517695,18.37394661,200.74,200.72,0.03]
[1739122518294,14.88684661,200.73,200.72,0.03]
[1739122518884,18.37404661,200.73,200.72,0.03]
[1739122519991,3.4872,200.73,200.72,0.03]
[1739122520300,14.88684661,200.76,200.72,0.03]
[1739122520600,3.4863,200.79,200.73,14.88684661]
[1739122520780,18.37314661,200.79,200.73,14.88684661]
[1739122520981,7.20870048,200.8,200.75,14.88684661]
[1739122521183,7.20870048,200.8,200.73,3.4872]
[1739122521184,7.20870048,200.8,200.76,14.88684661]
[1739122521379,7.20870048,200.8,200.73,3.4872]
[1739122521697,7.20870048,200.8,200.79,14.88684661]
[1739122522702,7.20870048,200.8,200.77,14.88684661]
[1739122523080,0.063,200.78,200.77,14.88684661]
[1739122523490,0.063,200.78,200.76,14.88684661]
[1739122523710,0.063,200.78,200.77,14.88684661]
[1739122524294,0.063,200.78,200.74,5.045]
[1739122524603,0.063,200.78,200.77,14.88684661]
[1739122528002,0.063,200.78,200.77,18.37334661]
[1739122528997,0.063,200.78,200.77,19.12015759]
[1739122531430,0.063,200.78,200.77,32.53200612]
[1739122531638,0.063,200.78,200.77,33.53200612]
[1739122531997,0.063,200.78,200.77,19.12015759]
[1739122534542,0.063,200.83,200.8,20.0]
[1739122534728,0.063,200.83,200.82,14.88684661]
[1739122534937,0.063,200.86,200.82,37.98779514]
[1739122535132,0.063,200.86,200.85,34.88684661]
[1739122535337,0.063,200.87,200.86,15.41184853]
[1739122535545,0.063,200.87,200.86,30.29869514]
[1739122535834,0.063,200.99,200.89,20.0]
[1739122536008,0.063,200.99,200.91,14.88684661]
[1739122536516,0.063,200.99,200.91,18.37094661]
[1739122537240,14.88684661,200.97,200.9,14.88684661]
[1739122537706,14.88684661,200.97,200.91,14.88684661]
[1739122537912,14.88684661,200.98,200.91,14.88684661]
[1739122538464,0.01714253,200.92,200.91,14.88684661]
[1739122539763,0.01714253,200.92,200.9,14.88684661]
[1739122539969,0.01714253,200.92,200.91,14.88684661]
[1739122542951,0.01714253,200.92,200.91,18.37094661]
[1739122543458,0.01714253,200.92,200.91,19.11723496]
[1739122544143,0.01714253,200.92,200.91,18.37094661]
[1739122544354,0.01714253,200.92,200.9,14.88684661]
[1739122544972,0.01714253,200.92,200.91,14.88684661]
[1739122545355,0.01714253,200.92,200.9,14.88684661]
[1739122545559,0.01714253,200.92,200.91,14.88684661]
[1739122545764,0.01714253,200.92,200.9,14.88684661]
[1739122547682,0.01714253,200.92,200.9,18.37114661]
[1739122548178,0.01714253,200.92,200.91,14.88684661]
[1739122549181,0.01714253,200.92,200.9,14.88684661]
[1739122549556,0.01714253,200.92,200.91,14.88684661]
[1739122552681,0.01714253,200.92,200.91,40.45026174]
[1739122554402,0.01714253,200.92,200.91,40.57575174]
[1739122554575,0.063,200.99,200.98,14.88684661]
[1739122556594,0.063,200.99,200.98,18.36974661]
[1739122556792,0.063,200.99,200.98,14.88684661]
[1739122557298,0.063,200.99,200.95,20.0]
[1739122557989,14.94984661,200.99,200.92,14.88684661]
[1739122558193,14.88684661,200.95,200.89,14.88684661]
[1739122558593,14.88684661,200.95,200.89,18.37124661]
[1739122559204,14.88684661,200.92,200.87,3.4846]
[1739122559496,14.88684661,200.94,200.87,18.37144661]
[1739122560495,14.94984661,200.99,200.92,14.88684661]
[1739122560700,14.94984661,200.99,200.93,14.88684661]
[1739122560871,0.063,200.99,200.95,14.88684661]
[1739122561070,18.43254661,200.99,200.93,14.88684661]
[1739122561275,14.88684661,200.98,200.92,14.88684661]
[1739122562001,14.88684661,200.98,200.91,34.88684661]
[1739122562182,14.88684661,200.97,200.91,20.0]
[1739122564200,14.88684661,200.92,200.85,14.88684661]
[1739122564375,14.88684661,200.9,200.84,18.37214661]
[1739122564571,14.88684661,200.9,200.86,20.0]
[1739122564788,14.88684661,200.91,200.85,14.88684661]
[1739122565493,14.88684661,200.91,200.81,4.76663596]
[1739122565494,14.88684661,200.89,200.82,14.88684661]
[1739122565673,1.5016,200.91,200.81,14.88684661]
[1739122565674,14.88684661,200.88,200.81,14.88684661]
[1739122567390,14.88684661,200.9,200.83,14.88684661]
[1739122567975,14.88684661,200.89,200.82,14.88684661]
[1739122568510,18.37124661,200.9,200.83,14.88684661]
[1739122570009,1.5016,200.91,200.81,14.88684661]
[1739122570010,14.88684661,200.88,200.81,14.88684661]
[1739122570313,3.4845,200.89,200.8,20.0]
[1739122570314,14.88684661,200.86,200.8,20.0]
[1739122571183,14.88684661,200.86,200.79,34.88684661]
[1739122571384,14.88684661,200.87,200.8,14.88684661]
[1739122572298,14.88684661,200.86,200.79,14.88684661]
[1739122572495,14.88684661,200.85,200.78,14.88684661]
[1739122572887,14.88684661,200.83,200.77,0.03]
[1739122573114,16.38844661,200.82,200.77,0.03]
[1739122573406,18.37284661,200.8,200.77,0.03]
[1739122574280,14.88684661,200.79,200.77,0.03]
[1739122574689,3.486,200.8,200.77,0.03]
[1739122574690,18.37284661,200.8,200.77,0.03]
[1739122574991,1.5016,200.82,200.77,0.03]
[1739122575294,16.54114661,200.87,200.8,14.88684661]
[1739122575503,16.54114661,200.87,200.79,14.88684661]
[1739122575504,14.88684661,200.86,200.79,14.88684661]
[1739122575888,14.88684661,200.85,200.78,14.88684661]
[1739122577020,1.6543,200.87,200.81,14.88684661]
[1739122577308,1.6543,200.87,200.82,14.88684661]
[1739122579624,6.4507,200.88,200.82,14.88684661]
[1739122579625,19.92574661,200.91,200.84,14.88684661]
[1739122579815,1.5547,200.91,200.86,14.88684661]
[1739122580115,14.88684661,200.89,200.82,38.37244661]
[1739122580319,14.88684661,200.88,200.82,14.88684661]
[1739122580499,14.88684661,200.89,200.82,14.88684661]
[1739122581391,14.88684661,200.89,200.82,18.37244661]
[1739122581593,16.44154661,200.91,200.84,14.88684661]
[1739122581816,1.5547,200.91,200.86,14.88684661]
[1739122582198,1.5547,200.91,200.85,14.88684661]
[1739122582397,1.5547,200.91,200.87,14.88684661]
[1739122582602,0.063,200.92,200.87,14.88684661]
[1739122583319,0.063,200.92,200.88,14.88684661]
[1739122583615,0.063,200.92,200.83,12.94588014]
[1739122583616,0.063,200.92,200.83,9.46038014]
[1739122583808,0.063,200.92,200.9,14.88684661]
[1739122584512,0.063,200.92,200.91,14.88684661]
[1739122585808,0.063,200.92,200.91,18.37094661]
[1739122589713,0.063,200.92,200.91,19.11729066]
[1739122590315,0.063,200.92,200.91,33.52913919]
[1739122592721,0.063,200.99,200.94,20.0]
[1739122592924,0.063,200.99,200.98,14.88684661]
[1739122593722,0.063,200.99,200.98,18.36974661]
[1739122593926,0.063,200.99,200.98,47.41449946]
[1739122594630,0.063,200.99,200.98,32.52765285]
[1739122595219,0.063,200.99,200.98,19.11580432]
[1739122595428,0.063,200.99,200.98,18.36974661]
[1739122596425,0.063,200.99,200.98,32.52765914]
[1739122596804,0.063,200.99,200.98,14.88684661]
[1739122597411,0.063,200.99,200.97,18.36984661]
[1739122597824,0.063,200.99,200.98,34.88684661]
[1739122598023,0.063,200.99,200.98,14.88684661]
[1739122600024,0.063,200.99,200.95,18.37014661]
[1739122600226,0.063,200.99,200.96,14.88684661]
[1739122600630,0.063,200.99,200.97,14.88684661]
[1739122601425,0.063,200.99,200.97,18.36984661]
[1739122601625,0.063,200.99,200.97,14.88684661]
[1739122602013,0.063,200.99,200.98,14.88684661]
[1739122602337,0.063,200.99,200.96,14.88684661]
[1739122602513,0.063,200.99,200.95,18.37014661]
[1739122604335,0.063,200.99,200.95,14.88684661]
[1739122604544,16.49574661,200.99,200.93,3.4836]
[1739122605435,1.6089,200.99,200.93,38.37044661]
[1739122605639,1.6089,200.99,200.94,14.88684661]
[1739122606040,1.6089,200.99,200.95,14.88684661]
[1739122606342,1.6089,200.99,200.96,14.88684661]
[1739122608344,1.6089,200.99,200.94,14.88684661]
[1739122608543,1.6089,200.99,200.95,14.88684661]
[1739122608746,1.6089,200.99,200.94,14.88684661]
[1739122609755,14.88684661,200.97,200.91,0.03]
[1739122610051,14.88684661,200.93,200.91,0.03]
[1739122610428,14.88684661,200.92,200.91,0.03]
[1739122610627,18.37064661,200.93,200.91,0.03]
[1739122610840,14.88684661,200.93,200.91,0.03]
[1739122611047,18.37044661,200.94,200.91,0.03]
[1739122611244,14.88684661,200.93,200.91,0.03]
[1739122611463,29.84459514,200.92,200.91,0.03]
[1739122611954,36.26659514,200.92,200.91,0.03]
[1739122612838,39.75049514,200.92,200.91,0.03]
[1739122613645,22.85474661,200.92,200.91,0.03]
[1739122614469,7.9679,200.92,200.91,0.03]
[1739122616147,1.5459,200.92,200.91,0.03]
[1739122616463,1.5459,200.96,200.91,0.03]
[1739122616681,3.5457,201.0,200.95,14.88684661]
[1739122617560,14.88684661,200.97,200.91,0.03]
[1739122617776,14.88684661,200.92,200.91,0.03]
[1739122617952,36.20659514,200.92,200.91,0.03]
[1739122619570,39.69049514,200.92,200.91,0.03]
[1739122621970,22.79474661,200.92,200.91,0.03]
[1739122622168,1.5459,200.92,200.91,0.03]
[1739122623292,28.29869514,200.95,200.91,0.03]
[1739122623460,22.81344661,200.97,200.91,0.03]
[1739122623852,1.6505,200.97,200.91,14.91684661]
[1739122624055,1.6505,200.97,200.92,14.88684661]
[1739122624886,28.36169514,200.99,200.92,14.88684661]
[1739122625056,13.47484853,200.99,200.93,14.88684661]
[1739122625256,0.063,200.99,200.93,14.88684661]
[1739122625649,0.063,200.99,200.94,14.88684661]
[1739122626067,0.063,200.99,200.93,14.88684661]
[1739122627190,14.88684661,200.98,200.91,14.91684661]
[1739122627396,14.88684661,200.95,200.91,0.03]
[1739122628789,14.88684661,200.94,200.91,0.03]
[1739122628994,14.88684661,200.93,200.91,0.03]
[1739122629602,14.88684661,200.94,200.91,0.03]
[1739122631410,14.88684661,200.95,200.91,0.03]
[1739122632708,14.88684661,200.98,200.91,14.91684661]
[1739122632879,13.41184853,200.98,200.92,14.88684661]
[1739122633080,28.29869514,200.98,200.91,14.91684661]
[1739122634818,0.063,200.99,200.94,14.88684661]
[1739122635113,0.063,200.99,200.93,14.88684661]
[1739122635292,14.88684661,200.98,200.91,14.91684661]
[1739122635494,14.94984661,200.99,200.92,14.88684661]
[1739122635691,0.063,200.99,200.93,14.88684661]
[1739122637805,0.063,200.99,200.95,14.88684661]
[1739122637987,0.063,200.99,200.96,14.88684661]
[1739122638880,0.063,200.99,200.98,14.88684661]
[1739122639285,0.063,200.99,200.97,14.88684661]
[1739122639487,0.063,200.99,200.96,34.88684661]
[1739122639902,0.063,200.99,200.94,14.88684661]
[1739122640084,14.88684661,200.98,200.91,19.98014661]
[1739122640400,14.88684661,200.96,200.91,0.03]
[1739122641001,14.88684661,200.97,200.91,0.03]
[1739122641806,18.36994661,200.97,200.91,0.03]
[1739122642394,13.41184853,200.97,200.91,14.91684661]
[1739122642594,28.29869514,200.97,200.91,0.03]
[1739122642787,14.88684661,200.96,200.91,0.03]
[1739122643001,14.88684661,200.95,200.91,0.03]
[1739122644798,14.88684661,200.96,200.91,0.03]
[1739122645411,28.29869514,200.97,200.91,0.03]
[1739122645719,14.94984661,200.99,200.92,14.88684661]
[1739122645905,14.94984661,200.99,200.93,3.4838]
[1739122646810,14.88684661,200.97,200.91,14.91684661]
[1739122647116,14.88684661,200.95,200.91,0.03]
[1739122647614,14.88684661,200.93,200.91,0.03]
[1739122647814,14.88684661,200.92,200.91,0.03]
[1739122648912,31.78259514,200.92,200.91,0.03]
[1739122650610,28.29869514,200.92,200.91,0.03]
[1739122651116,14.88684661,200.92,200.91,0.03]
[1739122653625,31.78259514,200.92,200.91,0.03]
[1739122654099,33.28449514,200.92,200.91,0.03]
[1739122657731,63.19449514,200.92,200.91,0.03]
[1739122661422,33.28449514,200.92,200.91,0.03]
[1739122662322,31.78259514,200.92,200.91,0.03]
[1739122662504,14.88684661,200.92,200.91,0.03]
[1739122662701,18.37074661,200.92,200.91,0.03]
[1739122663202,31.78259514,200.92,200.91,0.03]
[1739122663810,31.84559514,200.92,200.91,0.03]
[1739122668029,14.94984661,200.92,200.91,0.03]
[1739122668199,0.063,200.92,200.91,0.03]
[1739122668505,18.43374661,200.92,200.91,0.03]
[1739122668905,16.89574853,200.92,200.91,0.03]
[1739122669106,31.78259514,200.92,200.91,0.03]
[1739122676117,31.84559514,200.92,200.91,0.03]
[1739122678431,61.75559514,200.92,200.91,0.03]
[1739122679128,44.32184853,200.91,200.77,1.6202]
[1739122679306,14.88684661,200.82,200.77,1.6202]
[1739122680149,14.88684661,200.8,200.77,1.6202]
[1739122680737,14.88684661,200.81,200.77,1.6202]
[1739122681033,18.37274661,200.81,200.77,1.6202]
[1739122681244,8.7127,200.86,200.77,5.1066]
[1739122681245,14.88684661,200.83,200.77,5.1066]
[1739122681610,14.88684661,200.88,200.81,14.88684661]
[1739122682335,14.88684661,200.89,200.82,14.88684661]
[1739122682633,14.94984661,200.92,200.85,14.88684661]
[1739122682929,14.88684661,200.91,200.84,14.88684661]
[1739122683231,14.88684661,200.91,200.84,18.37214661]
[1739122683444,14.88684661,200.9,200.84,3.4853]
[1739122683737,14.88684661,200.9,200.83,18.37234661]
[1739122683917,14.88684661,200.84,200.78,0.03]
[1739122684225,14.88684661,200.83,200.78,0.03]
[1739122685015,14.88684661,200.84,200.8,20.0]
[1739122686030,14.88684661,200.84,200.79,20.0]
[1739122686231,14.88684661,200.87,200.8,14.88684661]
[1739122686446,14.88684661,200.89,200.83,14.88684661]
[1739122687113,13.41184853,200.88,200.82,14.88684661]
[1739122687428,14.88684661,200.86,200.79,14.88684661]
[1739122687630,14.88684661,200.86,200.79,34.88684661]
[1739122687828,14.88684661,200.85,200.79,20.0]
[1739122688133,14.88684661,200.86,200.79,34.88684661]
[1739122689212,14.88684661,200.85,200.79,20.0]
[1739122690113,3.4848,200.87,200.8,14.88684661]
[1739122690114,14.88684661,200.87,200.8,14.88684661]
[1739122690316,14.88684661,200.89,200.82,14.88684661]
[1739122690534,14.88684661,200.85,200.79,3.4862]
[1739122691540,14.88684661,200.85,200.78,18.40324661]
[1739122691748,14.88684661,200.87,200.8,14.88684661]
[1739122692119,14.88684661,200.87,200.8,34.88684661]
[1739122692761,14.88684661,200.87,200.81,3.4858]
[1739122692922,28.29869514,200.88,200.81,18.37264661]
[1739122693121,14.88684661,200.89,200.82,14.88684661]
[1739122693645,14.94984661,200.91,200.84,14.88684661]
[1739122694636,18.43394661,200.91,200.84,14.88684661]
[1739122694841,14.94984661,200.91,200.84,18.37204661]
[1739122695245,0.063,200.91,200.85,14.88684661]
[1739122696949,14.94984661,200.91,200.84,38.37204661]
[1739122698462,14.88684661,200.9,200.83,14.88684661]
[1739122698654,14.88684661,200.9,200.83,18.37234661]
[1739122699035,14.88684661,200.88,200.83,3.4855]
[1739122699840,14.88684661,200.89,200.83,3.4855]
[1739122700537,14.88684661,200.9,200.83,18.37234661]
[1739122701864,14.88684661,200.9,200.83,18.40234661]
[1739122702560,14.94984661,200.91,200.84,14.88684661]
[1739122702734,0.063,200.91,200.85,14.88684661]
[1739122704832,0.063,200.91,200.85,18.37194661]
[1739122705754,14.94984661,200.91,200.85,3.4851]
[1739122705952,14.94984661,200.91,200.84,18.37214661]
[1739122706159,14.94984661,200.91,200.83,0.03]
[1739122706160,14.88684661,200.88,200.83,0.03]
[1739122706328,14.88684661,200.87,200.83,0.03]
[1739122707346,14.88684661,200.84,200.83,0.03]
[1739122712541,18.37214661,200.84,200.83,0.03]
[1739122721663,9.52524686,200.84,200.83,0.03]
[1739122723368,13.01054686,200.84,200.83,0.03]
[1739122727471,13.01044686,200.85,200.83,0.03]
[1739122727677,9.52524686,200.87,200.83,0.03]
[1739122727864,13.01004686,200.87,200.83,0.03]
[1739122728859,9.52524686,200.86,200.83,0.03]
[1739122729474,9.52524686,200.84,200.83,0.03]
[1739122730673,22.93709539,200.84,200.83,0.03]
[1739122730860,26.42239539,200.84,200.83,0.03]
[1739122738285,27.67195858,200.84,200.83,0.03]
[1739122740763,57.58195858,200.84,200.83,0.03]
[1739122743368,26.42239539,200.84,200.83,0.03]
[1739122760813,13.41184853,200.83,200.78,0.03]
[1739122761026,22.93709539,200.79,200.78,0.03]
[1739122762317,26.42329539,200.79,200.78,0.03]
[1739122762823,22.93709539,200.78,200.77,0.03]
[1739122763014,22.93709539,200.78,200.7,0.03]
[1739122763015,22.93709539,200.71,200.7,0.03]
[1739122763707,22.93709539,200.71,200.62,1.6558]
[1739122763902,22.93709539,200.63,200.62,0.03]
[1739122764119,26.42609539,200.63,200.62,0.03]
[1739122764317,13.41184853,200.62,200.55,1.6258]
[1739122764613,9.52524686,200.59,200.55,1.6258]
[1739122765915,9.52524686,200.62,200.56,9.52524686]
[1739122766098,9.52524686,200.64,200.57,9.52524686]
[1739122767326,9.52524686,200.67,200.61,9.52524686]
[1739122767510,9.52524686,200.68,200.61,9.52524686]
[1739122767896,9.52524686,200.69,200.62,9.52524686]
[1739122768091,9.52524686,200.68,200.61,9.52524686]
[1739122768298,9.52524686,200.67,200.6,9.52524686]
[1739122768794,9.52524686,200.66,200.59,9.52524686]
[1739122769109,9.52524686,200.65,200.59,9.52524686]
[1739122769329,9.52524686,200.64,200.58,33.01504686]
[1739122769624,14.91168931,200.65,200.58,38.40148931]
[1739122769833,14.91168931,200.65,200.59,14.91168931]
[1739122770428,14.8686347,200.65,200.59,14.91168931]
[1739122770608,14.91168931,200.65,200.59,18.40128931]
[1739122771133,14.91168931,200.66,200.59,18.40128931]
[1739122773125,14.91168931,200.68,200.61,14.91168931]
[1739122773435,14.91168931,200.68,200.59,3.4896]
[1739122773436,14.91168931,200.69,200.62,14.91168931]
[1739122773736,14.91168931,200.68,200.62,14.91168931]
[1739122773912,14.91168931,200.68,200.62,3.4891]
[1739122775909,14.91168931,200.69,200.62,18.40078931]
[1739122776840,14.91168931,200.67,200.6,18.40108931]
[1739122777036,14.91168931,200.69,200.61,14.91168931]
[1739122777410,14.91168931,200.68,200.61,14.91168931]
[1739122777812,14.91168931,200.68,200.61,18.40078931]
[1739122779348,14.91168931,200.66,200.59,18.43128931]
[1739122779716,14.91168931,200.65,200.59,3.5196]
[1739122780820,14.91168931,200.66,200.59,18.43128931]
[1739122781345,18.39998931,200.67,200.6,14.91168931]
[1739122781739,14.91168931,200.67,200.6,14.91168931]
[1739122782123,14.91168931,200.66,200.59,18.43128931]
[1739122782541,14.91168931,200.61,200.59,0.03]
[1739122782733,14.91168931,200.6,200.59,0.03]
[1739122782936,28.32353784,200.6,200.59,0.03]
[1739122784143,31.81303784,200.6,200.59,0.03]
[1739122786649,28.32353784,200.6,200.59,0.03]
[1739122786836,31.81303784,200.6,200.59,0.03]
[1739122787647,14.91168931,200.6,200.59,0.03]
[1739122788149,28.32353784,200.6,200.59,0.03]
[1739122788541,31.81303784,200.6,200.59,0.03]
[1739122791760,26.45172029,200.6,200.59,0.03]
[1739122797368,9.55037176,200.6,200.59,0.03]
[1739122797867,13.03987176,200.6,200.59,0.03]